bitfinex/quotes_ETHUSD_20250808
["timestamp","ask_amount","ask_price","bid_price","bid_amount"]
[1754664181162,0.4349,3958.8,3957.5,0.9401]
[1754664181320,1.3758,3958.8,3957.6,0.13735]
[1754664181649,1.3758,3958.8,3958.0,2.52647396]
[1754664181650,3.90183741,3958.8,3958.0,2.52647396]
[1754664181814,3.90183741,3958.8,3957.6,0.13735]
[1754664181815,0.002,3958.8,3957.6,0.13735]
[1754664182252,0.002,3958.8,3957.9,3.0]
[1754664182555,0.002,3958.8,3958.7,5.52608179]
[1754664182716,0.002,3958.8,3958.7,6.33130637]
[1754664182921,0.002,3958.8,3958.7,7.70480637]
[1754664184077,0.002,3958.8,3958.7,12.96366037]
[1754664184078,1e-08,3958.8,3958.7,12.96366037]
[1754664184280,1e-08,3959.2,3959.1,2.52582657]
[1754664184559,1e-08,3959.4,3959.3,2.52569898]
[1754664184751,1e-08,3959.4,3959.3,5.52569898]
[1754664184955,1e-08,3959.4,3959.3,10.97619898]
[1754664185154,1e-08,3959.4,3959.3,14.85975698]
[1754664186229,1e-08,3959.4,3959.3,11.10259898]
[1754664186454,1e-08,3959.4,3959.3,8.43895888]
[1754664186623,1e-08,3959.4,3959.3,12.51195888]
[1754664186957,1e-08,3959.4,3959.3,15.84814588]
[1754664187330,1e-08,3959.6,3959.5,2.52557141]
[1754664187646,1e-08,3959.6,3959.5,20.55763334]
[1754664187824,1e-08,3959.6,3959.5,24.61282343]
[1754664188023,1e-08,3959.6,3959.5,24.18712143]
[1754664188250,1e-08,3959.6,3959.5,26.27014743]
[1754664188631,1e-08,3959.6,3959.5,12.2782615]
[1754664188946,1e-08,3959.6,3959.5,9.72297141]
[1754664189143,1e-08,3959.6,3959.5,5.65197141]
[1754664189747,0.43290001,3959.6,3959.5,2.52557141]
[1754664190045,1e-08,3959.6,3959.5,2.65197141]
[1754664190567,0.43290001,3959.6,3959.5,2.65197141]
[1754664190927,0.43290001,3959.6,3959.5,2.52557141]
[1754664190928,1.37380001,3959.6,3959.5,2.52557141]
[1754664191587,1.37380001,3959.6,3959.1,3.0]
[1754664191874,1e-08,3959.6,3959.5,5.52557141]
[1754664192029,1e-08,3959.6,3959.5,5.91762518]
[1754664192235,1e-08,3959.6,3959.5,6.04402518]
[1754664192457,1e-08,3959.6,3959.5,5.91762518]
[1754664192644,1e-08,3959.6,3959.5,6.04402518]
[1754664194461,1e-08,3959.6,3959.5,5.65197141]
[1754664195575,1e-08,3959.6,3959.5,6.59207141]
[1754664196185,1e-08,3959.6,3959.5,20.69775141]
[1754664196336,1e-08,3959.6,3959.5,13.74880441]
[1754664196668,1e-08,3959.6,3959.5,17.82180441]
[1754664196867,1e-08,3959.6,3959.5,19.85655383]
[1754664197034,1e-08,3959.6,3959.5,15.78355383]
[1754664197231,1e-08,3959.6,3959.5,15.58401283]
[1754664197448,1e-08,3959.6,3959.5,16.01741283]
[1754664198368,1e-08,3959.6,3959.5,7.68672083]
[1754664198570,1e-08,3959.6,3959.5,15.00655541]
[1754664198759,1e-08,3959.6,3959.5,12.18107141]
[1754664198942,1e-08,3959.6,3959.5,16.08065541]
[1754664199272,1e-08,3959.6,3959.5,17.06405541]
[1754664199649,1e-08,3960.4,3960.3,3.07506123]
[1754664199850,1e-08,3961.4,3961.3,2.5244238]
[1754664200160,1e-08,3961.4,3961.3,9.7198238]
[1754664200561,1e-08,3961.4,3961.3,10.6599238]
[1754664200773,1e-08,3961.4,3961.3,9.7198238]
[1754664200954,1e-08,3961.4,3961.3,5.6508238]
[1754664201141,1e-08,3961.4,3961.3,10.53735689]
[1754664201776,0.43290001,3961.4,3961.3,9.7178238]
[1754664202247,1e-08,3961.4,3961.3,9.7178238]
[1754664202448,1e-08,3961.4,3961.3,5.6508238]
[1754664202652,1e-08,3961.4,3961.3,9.7158238]
[1754664203748,1e-08,3961.4,3961.3,41.5129238]
[1754664203934,1e-08,3961.4,3961.3,44.06821389]
[1754664204155,0.04,3962.4,3962.3,2.52378668]
[1754664204357,0.04,3962.4,3962.3,9.59078668]
[1754664204770,0.04,3962.4,3962.3,5.52378668]
[1754664205070,0.04,3962.4,3962.3,9.58978668]
[1754664205239,0.04,3962.4,3962.3,5.52378668]
[1754664205240,0.4691,3962.4,3962.3,5.52378668]
[1754664205441,1.4554,3962.4,3962.3,5.52378668]
[1754664205640,1.4554,3962.4,3962.3,3.0]
[1754664206055,1.4554,3962.4,3962.1,2.52389553]
[1754664206056,1.4554,3962.4,3960.3,1.50042058]
[1754664206256,1.4154,3962.3,3960.5,10.53535993]
[1754664206476,1.4154,3962.3,3962.2,2.52385038]
[1754664207068,0.04,3962.4,3962.3,2.52378668]
[1754664207272,0.04,3962.4,3962.3,5.52378668]
[1754664207680,0.04,3962.4,3962.3,9.59478668]
[1754664207872,0.4291,3963.2,3963.1,2.52327723]
[1754664208076,0.04,3963.4,3963.3,2.5231499]
[1754664208257,0.04,3963.4,3963.3,5.5231499]
[1754664209669,0.4691,3963.4,3963.3,5.5231499]
[1754664209861,1.4554,3963.4,3963.3,5.5231499]
[1754664210511,1.4554,3963.4,3963.1,2.52327326]
[1754664210708,1.4154,3963.3,3962.7,2.52348338]
[1754664210997,0.4291,3963.2,3962.5,3.0]
[1754664211209,0.9863,3963.3,3962.5,1.08065663]
[1754664211210,0.4291,3963.3,3962.5,1.08065663]
[1754664211357,0.4291,3963.3,3962.9,3.0]
[1754664211558,0.9863,3963.2,3963.1,5.52327723]
[1754664211763,1.4154,3963.2,3963.1,5.52327723]
[1754664211982,1.4154,3963.2,3963.1,3.0]
[1754664212503,1.4154,3963.2,3961.2,0.9404]
[1754664212659,3.93868698,3963.1,3962.3,2.52374083]
[1754664212993,0.04,3963.4,3961.8,4.066]
[1754664212994,1.4154,3963.0,3961.8,4.066]
[1754664213198,0.4291,3962.9,3962.3,2.52374177]
[1754664213361,0.4291,3962.9,3962.4,2.52367825]
[1754664213567,0.4291,3962.9,3962.8,2.52346825]
[1754664213803,0.1264,3962.7,3962.5,2.52360468]
[1754664214006,0.4291,3962.6,3962.5,2.52360468]
[1754664214511,0.1264,3962.7,3962.1,0.1264]
[1754664214820,0.4291,3962.6,3962.5,2.5236593]
[1754664215208,1.4154,3962.6,3961.9,2.52402781]
[1754664215499,1.4154,3962.6,3960.4,0.4575]
[1754664215500,0.1264,3962.1,3960.8,4.065]
[1754664215703,0.1264,3961.8,3961.5,2.52424446]
[1754664215873,0.15418,3962.5,3960.8,6.58971782]
[1754664215874,1.4154,3961.7,3961.4,2.52435007]
[1754664216060,1.4154,3961.6,3961.4,2.52435007]
[1754664216264,1.5418,3961.5,3961.4,2.52436007]
[1754664216765,1.5418,3961.5,3960.8,2.52469898]
[1754664216960,0.1264,3961.1,3960.5,0.1264]
[1754664217165,0.1264,3961.1,3960.9,2.52462417]
[1754664217398,0.4291,3961.0,3960.9,2.52462417]
[1754664218369,0.4291,3961.0,3960.8,2.52473526]
[1754664218574,1.4154,3960.9,3960.0,4.063]
[1754664218798,0.1264,3960.7,3960.6,5.52486996]
[1754664218999,0.1264,3960.7,3960.6,3.0]
[1754664219304,0.5555,3960.7,3960.6,5.52486996]
[1754664219868,0.5555,3960.7,3960.6,3.0]
[1754664220396,0.5555,3960.7,3960.4,2.52498279]
[1754664220397,1.5418,3960.7,3960.4,2.52498279]
[1754664220583,0.1264,3960.5,3960.4,2.52499297]
[1754664220902,0.5555,3960.5,3960.4,2.52499297]
[1754664221505,1.5418,3960.5,3960.2,3.0]
[1754664221701,1.5418,3960.5,3960.1,0.04]
[1754664221702,2.52506123,3960.3,3960.1,0.04]
[1754664222003,0.55,3960.1,3959.6,0.001]
[1754664222221,0.1264,3959.8,3959.6,0.001]
[1754664222577,1.4154,3959.7,3959.6,0.001]
[1754664223327,4.64502384,3959.7,3959.6,0.001]
[1754664224112,2.24598,3959.7,3959.6,0.001]
[1754664224311,6.30798,3959.7,3959.6,0.001]
[1754664224474,8.83342384,3959.7,3959.6,0.001]
[1754664224974,4.77142384,3959.7,3959.6,0.001]
[1754664225167,8.83242384,3959.7,3959.6,0.001]
[1754664226891,8.82942384,3959.7,3959.6,0.001]
[1754664227406,6.30398,3959.7,3959.6,0.001]
[1754664228117,8.82942384,3959.7,3959.6,0.001]
[1754664228281,6.30398,3959.7,3959.6,0.001]
[1754664228490,1.4154,3960.4,3959.6,2.52650762]
[1754664228732,1.4154,3960.4,3959.8,2.52537612]
[1754664229017,4.056,3960.3,3960.2,2.52512499]
[1754664229334,4.059,3960.3,3960.2,2.52512499]
[1754664229540,4.059,3960.3,3959.6,0.001]
[1754664229686,4.4881,3960.3,3959.6,0.001]
[1754664229886,0.44881,3960.2,3959.6,0.001]
[1754664230094,0.44881,3960.2,3959.8,2.52532767]
[1754664230292,0.4291,3960.5,3960.3,2.52500139]
[1754664230494,7.4774,3961.0,3959.6,0.001]
[1754664230730,4.057,3960.9,3960.4,2.52499747]
[1754664230893,4.058,3960.8,3959.7,3.0]
[1754664231222,4.058,3960.8,3960.4,2.52499464]
[1754664231535,4.058,3960.8,3960.2,2.52512426]
[1754664231692,4.4871,3960.8,3960.2,2.52512426]
[1754664231894,5.64084,3960.8,3960.2,2.52506807]
[1754664232206,5.21174,3960.8,3960.0,2.52521069]
[1754664232402,0.55,3960.6,3959.6,0.001]
[1754664232604,0.55,3960.6,3959.7,2.52543722]
[1754664232929,0.4291,3960.5,3959.9,2.52527455]
[1754664233129,0.4291,3960.5,3959.6,0.001]
[1754664233331,2.95405229,3960.5,3959.7,5.52539465]
[1754664233537,1.39928833,3960.5,3959.7,3.0]
[1754664233691,4.056,3960.4,3960.2,2.52506742]
[1754664233891,4.056,3960.4,3960.3,2.52506123]
[1754664235725,4.056,3960.4,3960.1,2.52514039]
[1754664235924,4.056,3960.4,3960.1,2.52512572]
[1754664236294,4.056,3960.4,3960.3,2.52506123]
[1754664236922,4.056,3960.4,3959.7,5.52542448]
[1754664236923,4.056,3960.4,3960.1,2.52518432]
[1754664237094,4.056,3960.4,3960.2,2.52507376]
[1754664237292,4.056,3960.4,3960.1,2.52517721]
[1754664237529,4.056,3960.4,3959.7,3.0]
[1754664237727,4.056,3960.4,3960.0,2.52520692]
[1754664237932,4.4963,3960.4,3960.0,2.52520692]
[1754664238330,4.056,3960.4,3959.9,2.52529195]
[1754664238528,4.056,3960.4,3959.7,3.0]
[1754664238529,0.1264,3960.0,3959.7,3.0]
[1754664238823,0.1264,3959.8,3959.7,5.52544384]
[1754664239030,0.1264,3959.8,3959.7,2.52544384]
[1754664239231,0.1264,3959.8,3959.6,0.001]
[1754664239434,0.1264,3959.8,3959.6,3.001]
[1754664239934,0.1264,3959.8,3959.6,0.001]
[1754664241437,0.4403,3959.7,3959.6,0.001]
[1754664241610,2.96574384,3959.7,3959.6,0.001]
[1754664241812,1.3962,3959.7,3959.6,0.001]
[1754664242137,3.92164384,3959.7,3959.6,0.001]
[1754664242427,1.3962,3959.7,3959.6,0.001]
[1754664242595,0.4403,3959.7,3959.6,0.001]
[1754664242797,0.1264,3959.8,3959.7,2.52544384]
[1754664243019,4.1674,3959.8,3959.7,3.03074221]
[1754664243408,4.1674,3959.8,3959.7,2.52544384]
[1754664245240,0.1264,3959.8,3959.7,6.81544384]
[1754664245428,0.002,3960.4,3960.2,2.52507222]
[1754664245626,4.037,3960.3,3960.2,2.52507222]
[1754664245826,0.1264,3960.3,3960.2,2.52507222]
[1754664246141,4.1634,3960.3,3960.2,3.03010216]
[1754664246443,0.002,3960.4,3960.3,5.52506123]
[1754664246619,0.002,3960.4,3960.3,6.92596123]
[1754664247421,1e-08,3960.4,3960.3,17.58772116]
[1754664247625,1e-08,3960.4,3960.3,9.36666628]
[1754664248160,1e-08,3960.4,3960.3,8.78046628]
[1754664248448,1e-08,3960.4,3960.3,5.52506123]
[1754664248663,0.44030001,3960.4,3959.5,0.001]
[1754664248820,0.1264,3960.3,3959.5,0.001]
[1754664249017,0.1264,3960.3,3960.2,2.52512499]
[1754664249225,4.1674,3960.3,3960.2,3.46622499]
[1754664249431,4.1674,3960.3,3959.6,0.001]
[1754664249654,4.041,3960.3,3960.2,2.52512499]
[1754664250118,4.1674,3960.3,3960.2,2.52512499]
[1754664250322,4.1674,3960.3,3959.6,0.001]
[1754664250519,1e-08,3960.4,3960.2,2.52512499]
[1754664250749,1e-08,3960.4,3959.6,0.001]
[1754664250750,0.1264,3960.1,3959.6,0.001]
[1754664250948,0.5667,3960.1,3959.8,3.0]
[1754664251160,0.5667,3960.1,3960.0,3.0]
[1754664251318,0.1264,3960.1,3960.0,2.52525252]
[1754664251518,4.1694,3960.1,3960.0,2.52525252]
[1754664252918,4.1694,3960.1,3959.9,2.52531008]
[1754664253118,0.1264,3960.1,3960.0,5.52525252]
[1754664253316,4.1654,3960.1,3960.0,5.52525252]
[1754664253722,4.6057,3960.1,3959.9,3.0]
[1754664254053,0.1264,3959.8,3959.6,0.001]
[1754664254261,0.1264,3959.9,3959.6,0.001]
[1754664254580,1e-08,3960.4,3960.3,2.52506123]
[1754664254855,1e-08,3960.4,3960.3,18.76828218]
[1754664255058,1e-08,3960.5,3960.4,5.52499747]
[1754664255420,1e-08,3960.5,3960.4,6.92589747]
[1754664255870,1e-08,3960.5,3960.4,6.46609747]
[1754664256234,1e-08,3960.5,3960.4,5.52499747]
[1754664256423,1e-08,3960.5,3960.4,7.95281956]
[1754664256756,1e-08,3960.5,3960.4,2.52499747]
[1754664257253,4.61070001,3960.5,3960.4,2.52499747]
[1754664257752,4.17040001,3960.5,3960.4,2.52499747]
[1754664259124,0.12640001,3960.5,3960.4,2.52499747]
[1754664259364,1e-08,3960.5,3960.4,4.05229747]
[1754664259666,1e-08,3960.5,3960.4,13.3509488]
[1754664260456,1e-08,3960.5,3960.4,11.9500488]
[1754664260762,1e-08,3960.5,3960.4,9.81499747]
[1754664262535,1e-08,3960.5,3960.4,11.34229747]
[1754664263666,1e-08,3960.5,3960.4,9.94139747]
[1754664263872,1e-08,3960.5,3960.4,10.88249747]
[1754664264048,1e-08,3960.5,3960.4,11.34229747]
[1754664264244,1e-08,3960.5,3960.4,17.93758756]
[1754664264860,1e-08,3960.5,3960.4,13.52118756]
[1754664265191,1e-08,3961.3,3961.2,5.52448752]
[1754664265353,1e-08,3961.7,3961.6,5.52423263]
[1754664265538,1e-08,3961.7,3961.6,44.900266]
[1754664265843,1e-08,3961.7,3961.6,44.36802109]
[1754664266262,1e-08,3961.7,3961.6,31.36375109]
[1754664266977,1e-08,3961.7,3961.6,26.98831209]
[1754664267149,1e-08,3961.7,3961.6,27.49583709]
[1754664267570,1e-08,3961.7,3961.6,23.64591709]
[1754664267871,1e-08,3961.7,3961.6,8.20592272]
[1754664268184,1e-08,3961.7,3961.6,10.57953263]
[1754664268478,1e-08,3961.7,3961.6,6.54153263]
[1754664269150,1e-08,3961.7,3961.6,5.65063263]
[1754664270474,1e-08,3961.7,3961.6,11.03053263]
[1754664270977,1e-08,3961.7,3961.6,10.57753263]
[1754664271177,1e-08,3961.7,3961.6,12.93862657]
[1754664271784,1e-08,3961.7,3961.6,12.04772657]
[1754664272080,1e-08,3961.7,3961.6,12.93862657]
[1754664272985,1e-08,3961.7,3961.6,13.39162657]
[1754664273279,1e-08,3961.7,3961.6,8.90262657]
[1754664273483,1e-08,3961.7,3961.6,12.93562657]
[1754664274173,1e-08,3961.7,3961.6,12.04472657]
[1754664274363,1e-08,3961.7,3961.6,12.93562657]
[1754664274773,1e-08,3961.7,3961.6,13.38862657]
[1754664274979,1e-08,3961.7,3961.6,12.93562657]
[1754664275454,1e-08,3961.7,3961.6,12.04472657]
[1754664276189,0.44430001,3961.7,3961.6,5.01172657]
[1754664276354,1e-08,3961.7,3961.6,5.65063263]
[1754664277684,1e-08,3961.7,3961.6,10.57453263]
[1754664279191,1e-08,3961.7,3961.6,11.02753263]
[1754664279387,1e-08,3961.7,3961.6,10.57453263]
[1754664279596,1e-08,3961.7,3961.6,13.38832657]
[1754664279968,1e-08,3961.7,3961.6,12.04342657]
[1754664280688,0.04,3962.4,3962.3,2.52378668]
[1754664280897,0.04,3962.4,3962.3,6.55578668]
[1754664281089,0.04,3962.4,3962.3,5.65018668]
[1754664281258,0.04,3962.4,3962.3,6.69185199]
[1754664282005,0.4843,3962.4,3962.3,6.69185199]
[1754664282212,1.3991,3962.4,3962.3,6.69185199]
[1754664282708,1.3991,3962.4,3962.3,5.52378668]
[1754664283559,0.4843,3962.4,3962.3,5.52378668]
[1754664284932,1e-08,3962.4,3962.3,9.55578668]
[1754664285128,0.002,3963.2,3963.1,2.52327723]
[1754664285303,0.002,3963.2,3963.1,5.52327723]
[1754664285829,0.002,3963.2,3963.1,5.64967723]
[1754664286036,0.4463,3963.2,3963.1,5.64967723]
[1754664286244,0.5727,3963.2,3963.1,5.52327723]
[1754664286606,0.002,3963.2,3963.1,5.52327723]
[1754664286937,0.4463,3963.2,3963.1,5.52327723]
[1754664287092,0.002,3963.2,3963.1,6.32794443]
[1754664287292,0.002,3963.2,3963.1,6.45434443]
[1754664287793,0.002,3963.2,3963.1,5.52327723]
[1754664287993,0.002,3963.2,3963.1,5.64967723]
[1754664288739,0.4463,3963.2,3963.1,5.64967723]
[1754664288940,0.002,3963.2,3963.1,5.64967723]
[1754664289795,0.4463,3963.2,3963.1,5.64967723]
[1754664290011,0.002,3963.2,3963.1,5.64967723]
[1754664291504,0.4463,3963.2,3963.1,5.64967723]
[1754664291704,0.4463,3963.2,3963.1,6.34967723]
[1754664292492,0.002,3963.2,3963.1,6.34967723]
[1754664293361,1.3611,3963.2,3963.1,6.22327723]
[1754664293784,0.4463,3963.2,3963.1,6.22327723]
[1754664294083,0.002,3963.2,3963.1,6.22327723]
[1754664294252,0.4339,3963.2,3963.1,6.22327723]
[1754664294453,1.3674,3963.2,3963.1,6.22327723]
[1754664294853,1.3674,3963.2,3963.1,5.52327723]
[1754664295054,1.4938,3963.2,3963.1,5.52327723]
[1754664295486,1.4938,3963.2,3963.1,3.0]
[1754664295664,1.64718,3963.2,3962.5,0.1264]
[1754664295856,1.3674,3963.2,3963.1,2.52327723]
[1754664296189,1.3674,3963.2,3962.6,2.52355173]
[1754664296495,0.4319,3963.1,3963.0,2.5233409]
[1754664296658,1.3654,3963.1,3963.0,2.5233409]
[1754664296994,1.4918,3963.1,3963.0,2.5233409]
[1754664297654,1.3654,3963.1,3963.0,2.5233409]
[1754664297857,1.4918,3963.1,3963.0,2.5233409]
[1754664298452,1.4918,3963.1,3962.9,2.5233863]
[1754664298683,0.002,3963.2,3961.9,12.8442837]
[1754664298893,0.002,3963.2,3962.5,0.1264]
[1754664299072,0.1264,3963.1,3963.0,2.5233409]
[1754664299278,1.4918,3963.1,3963.0,2.5233409]
[1754664299868,0.002,3963.2,3963.0,2.5233409]
[1754664299869,0.002,3963.2,3963.1,2.52327723]
[1754664300470,0.4339,3963.2,3963.1,2.52327723]
[1754664300878,0.4339,3963.2,3963.1,5.52327723]
[1754664301376,0.002,3963.2,3963.1,5.52327723]
[1754664301577,0.4339,3963.2,3963.1,5.52327723]
[1754664301968,0.002,3963.2,3963.1,5.52327723]
[1754664302486,1.3674,3963.2,3963.1,5.52327723]
[1754664302663,1.3674,3963.2,3963.1,3.0]
[1754664302858,4.17039801,3963.2,3961.5,4.03]
[1754664303216,1.3654,3963.1,3961.6,3.0]
[1754664303378,4.03,3963.0,3962.7,2.52351373]
[1754664303595,1.3654,3962.9,3962.5,2.52359621]
[1754664303870,1.3654,3962.9,3961.7,4.03]
[1754664303871,0.1264,3962.7,3961.7,4.03]
[1754664304075,1.3654,3962.8,3962.7,2.52353193]
[1754664304704,1.4918,3962.8,3962.7,2.52353193]
[1754664305265,0.1264,3962.8,3962.7,5.52353193]
[1754664305484,0.4339,3963.2,3963.1,2.52327723]
[1754664305907,0.002,3963.2,3963.1,2.52327723]
[1754664306321,0.002,3963.2,3963.1,6.05317743]
[1754664306470,0.002,3963.2,3963.1,6.15434466]
[1754664306962,0.4339,3964.2,3963.1,6.15434466]
[1754664306963,0.002,3964.2,3963.1,7.04164466]
[1754664307163,1e-08,3963.6,3963.5,18.49370628]
[1754664307441,1e-08,3963.6,3963.5,22.52370628]
[1754664307669,1e-08,3963.6,3963.5,26.43559637]
[1754664307938,0.002,3964.2,3964.1,5.5226407]
[1754664308149,0.002,3964.2,3964.1,22.3969244]
[1754664308446,0.002,3964.2,3964.1,22.5233244]
[1754664308736,0.9735,3965.4,3965.3,5.52187728]
[1754664308737,1e-08,3965.4,3965.3,5.52187728]
[1754664308922,1e-08,3965.4,3965.3,23.87916098]
[1754664309123,1e-08,3965.4,3965.3,23.40986098]
[1754664309516,1e-08,3965.4,3965.3,5.64827728]
[1754664310237,1e-08,3965.4,3965.3,5.52187728]
[1754664310538,1e-08,3965.4,3965.3,6.29373666]
[1754664310707,1e-08,3965.4,3965.3,7.18103666]
[1754664310902,1e-08,3965.4,3965.3,7.65033666]
[1754664311208,1e-08,3965.4,3965.3,7.18103666]
[1754664311614,1e-08,3965.4,3965.3,6.29373666]
[1754664311938,1e-08,3965.4,3965.3,11.21003666]
[1754664312313,1e-08,3965.4,3965.3,10.32273666]
[1754664312712,1e-08,3965.4,3965.3,24.52362036]
[1754664313034,1e-08,3965.4,3965.3,38.05367236]
[1754664313617,1e-08,3965.4,3965.3,37.72342136]
[1754664313815,1e-08,3965.4,3965.3,31.04876736]
[1754664314028,1e-08,3965.4,3965.3,20.49462036]
[1754664314339,1e-08,3965.4,3965.3,35.45762036]
[1754664314739,1e-08,3965.4,3965.3,36.00762036]
[1754664315954,1e-08,3965.4,3965.3,30.33434936]
[1754664316262,1e-08,3965.4,3965.3,26.30534936]
[1754664316462,1e-08,3965.4,3965.3,30.33334936]
[1754664318475,1e-08,3965.4,3965.3,26.30534936]
[1754664318698,1e-08,3965.4,3965.3,30.33234936]
[1754664318900,1e-08,3965.4,3965.3,29.86304936]
[1754664319110,1e-08,3965.4,3965.3,34.15304936]
[1754664319309,1e-08,3965.4,3965.3,16.97646566]
[1754664319793,1e-08,3965.4,3965.3,16.69970166]
[1754664320162,1e-08,3965.4,3965.3,12.67270166]
[1754664320357,1e-08,3965.4,3965.3,16.69970166]
[1754664320563,1e-08,3965.4,3965.3,14.61073666]
[1754664320877,1.36540001,3965.4,3965.3,10.58373666]
[1754664321081,1.36540001,3965.4,3965.3,6.93827728]
[1754664321285,1e-08,3965.4,3965.3,6.93827728]
[1754664321465,1e-08,3965.4,3965.3,9.93827728]
[1754664321665,1e-08,3965.4,3965.3,13.96427728]
[1754664322103,0.43190001,3965.4,3965.3,13.96427728]
[1754664322450,1e-08,3965.4,3965.3,15.11440409]
[1754664323193,1e-08,3965.4,3965.3,10.82440409]
[1754664323864,1e-08,3965.4,3965.3,11.71170409]
[1754664324067,1e-08,3965.4,3965.3,16.00170409]
[1754664324304,1e-08,3965.4,3965.3,47.35158109]
[1754664324603,1e-08,3965.4,3965.3,31.73706509]
[1754664324778,1e-08,3965.4,3965.3,29.34089709]
[1754664326003,0.4703,3967.4,3967.3,5.52060595]
[1754664326302,0.4703,3967.4,3967.3,6.07266655]
[1754664326505,0.4703,3967.4,3967.3,6.19906655]
[1754664326685,1.3958,3967.4,3967.3,6.19906655]
[1754664327008,1.3958,3967.4,3967.3,5.64700595]
[1754664327302,1.3958,3967.4,3967.3,3.1264]
[1754664327599,1.3958,3967.4,3967.3,3.0]
[1754664328867,1.3958,3967.4,3966.0,2.52141036]
[1754664328868,1.3958,3967.4,3966.4,3.1264]
[1754664329084,1.3958,3967.4,3966.6,3.0]
[1754664329363,1.3958,3967.4,3967.0,0.1264]
[1754664329573,0.4303,3967.3,3967.0,0.1264]
[1754664329813,1.3558,3967.3,3967.2,3.0]
[1754664329998,1.3558,3967.3,3967.1,3.0]
[1754664330204,1.3558,3967.2,3967.0,3.0]
[1754664330421,0.4303,3967.1,3967.0,2.52079657]
[1754664330601,0.4303,3967.1,3967.0,2.64719657]
[1754664330789,0.4303,3967.1,3967.0,2.89927623]
[1754664330991,0.04,3967.4,3967.3,2.52060595]
[1754664331218,0.04,3967.4,3967.3,2.64700595]
[1754664331390,0.04,3967.4,3967.3,9.67200595]
[1754664331597,0.04,3967.4,3967.3,11.97521638]
[1754664331921,1e-08,3967.4,3967.3,12.80411638]
[1754664332123,1e-08,3967.4,3967.3,19.06281238]
[1754664332794,0.4303,3968.7,3968.3,2.51997076]
[1754664332992,0.4303,3968.7,3968.3,9.54397076]
[1754664333249,1.3958,3968.4,3968.3,6.72637761]
[1754664333527,0.04,3969.4,3969.3,5.5193359]
[1754664335305,1.3958,3969.4,3969.3,3.0]
[1754664335929,1.5214,3969.4,3969.3,5.5193359]
[1754664336132,1.5214,3969.4,3969.3,3.0]
[1754664336434,1.67354,3969.4,3969.0,3.0]
[1754664336638,1.3558,3969.3,3968.5,0.1256]
[1754664336797,0.1256,3969.1,3969.0,2.51952632]
[1754664336998,0.1256,3969.2,3969.1,2.51941545]
[1754664337206,0.19214,3969.4,3969.3,2.5193359]
[1754664337404,0.04,3969.4,3969.3,2.5193359]
[1754664337635,0.04,3969.4,3969.3,5.6449359]
[1754664337836,0.4703,3969.4,3969.3,5.5193359]
[1754664338040,0.4703,3969.4,3969.3,3.0]
[1754664338208,0.4703,3969.4,3969.3,5.5193359]
[1754664338409,1.3958,3969.4,3969.3,5.5193359]
[1754664338834,0.4703,3969.4,3969.3,5.5193359]
[1754664339034,1.3958,3969.4,3969.3,3.0]
[1754664339612,1.66098,3969.4,3969.3,3.0]
[1754664340137,1.66098,3969.4,3968.6,2.64534687]
[1754664340442,0.1256,3969.2,3969.0,2.51946528]
[1754664340609,0.4303,3969.1,3969.0,2.51951451]
[1754664341341,0.04,3969.4,3968.8,2.51962471]
[1754664341342,0.04,3969.4,3969.3,2.5193359]
[1754664341540,0.04,3969.4,3969.3,5.5193359]
[1754664341727,0.04,3969.4,3969.3,6.33577578]
[1754664341927,0.1256,3970.5,3970.3,2.51870135]
[1754664342910,0.4703,3971.4,3970.3,5.51870135]
[1754664343148,0.1656,3971.4,3970.3,11.09450135]
[1754664343336,0.04,3971.4,3970.3,11.09450135]
[1754664343839,1e-08,3970.4,3970.3,11.09450135]
[1754664344043,1e-08,3970.4,3970.3,13.64979144]
[1754664344378,0.04,3971.4,3971.3,5.51806713]
[1754664344673,0.04,3971.4,3971.3,14.86235713]
[1754664344674,1e-08,3971.4,3971.3,14.86235713]
[1754664345024,1e-08,3971.4,3971.3,9.67666713]
[1754664345182,1e-08,3971.4,3971.3,6.59896713]
[1754664345400,1e-08,3972.4,3972.3,2.51743322]
[1754664345598,0.1256,3973.7,3973.3,2.51679963]
[1754664345888,0.13157893,3974.2,3973.3,2.51679963]
[1754664345889,0.4303,3974.0,3973.3,5.64239963]
[1754664346249,0.4303,3974.0,3973.3,3.1256]
[1754664346693,0.04,3974.4,3973.3,6.59769963]
[1754664346978,0.04,3974.4,3973.3,8.23275597]
[1754664347679,0.04,3974.4,3974.3,5.51616636]
[1754664347836,0.04,3976.4,3975.3,2.51553341]
[1754664348040,0.04,3976.4,3975.3,9.58753341]
[1754664348344,0.4303,3976.2,3975.3,5.51553341]
[1754664348542,0.9655,3976.4,3975.3,5.51553341]
[1754664348543,0.04,3976.4,3975.3,18.35981711]
[1754664348873,0.4303,3975.9,3975.3,3.0]
[1754664349186,0.04,3976.4,3975.3,6.06553341]
[1754664349353,0.04,3976.4,3975.3,10.66111141]
[1754664349674,0.04,3976.4,3975.3,7.595578]
[1754664349839,0.04,3976.4,3976.3,3.0]
[1754664350040,0.04,3976.4,3976.3,2.51490078]
[1754664350472,0.04,3976.4,3976.3,5.51490078]
[1754664350765,0.04,3976.4,3976.3,3.0]
[1754664350934,0.04,3976.4,3976.3,5.51490078]
[1754664351131,0.04,3977.4,3976.3,5.51490078]
[1754664351132,0.04,3977.4,3976.3,27.11706927]
[1754664351335,0.4303,3979.1,3976.4,13.87925137]
[1754664351566,0.58234217,3980.4,3976.4,13.87925137]
[1754664351567,0.4303,3979.6,3977.1,3.0]
[1754664351769,1.3558,3979.5,3977.3,3.0]
[1754664352070,0.56588,3979.4,3977.7,3.0]
[1754664352369,0.56588,3979.4,3978.5,3.0]
[1754664352603,0.4303,3979.3,3978.0,4.314]
[1754664352809,0.4303,3979.3,3977.2,1.4272]